Cogmind - Beta 11 X9 @@@ ROGUE MODE // 2022.01.03 @ 08:51:18 // Winter2021/Sauler Player: Exp. Geonium Core Result: Destroyed by D-53 Grenadier with Mini Grenade Launcher Performance ------------- Evolutions (0) 0 Regions Visited (2) 400 Robots Destroyed (7) 35 Value Destroyed (246) 246 Prototype IDs (0) 0 Alien Tech Used (0) 0 Bonus (21) 21 TOTAL SCORE: 702 Bonus ------- Follower Combat Kills 21 Cogmind --------- Core Integrity 0/250 Matter 300/300 Energy 100/100 System Corruption 1% Temperature Cool (0) Movement Core (50) Location -10/Mines Parts ------- > --- POWER (1) -------- (None) > --- PROPULSION (2) --- Light Treads > --- UTILITY (2) ------ (None) > --- WEAPON (2) ------- (None) > --- INVENTORY (5) ---- Wheel Compact Wheel High-capacity Storage Unit EM Pulse Gun Peak State ------------ > --- POWER ------------ Light Ion Engine > --- PROPULSION ------- Aluminum Leg Aluminum Leg > --- UTILITY ---------- Improved Heat Sink Medium Storage Unit > --- WEAPON ----------- Light Assault Rifle Light Assault Rifle > --- INVENTORY -------- Light Treads Light Treads Wheel Compact Wheel EM Pulse Gun [Rating: 9] Favorites ----------- Power Light Ion Engine Engine Light Ion Engine Propulsion Aluminum Leg Treads Light Treads Leg Aluminum Leg Utility Medium Storage Unit Device Improved Heat Sink Storage Medium Storage Unit Weapon Light Assault Rifle Energy Gun EM Pulse Gun Ballistic Gun Light Assault Rifle Build | -11 -10 -10 ------- Run | Scr Mat Min Slots Evolved . | . . . Power . | . . . Propulsion . | . . . Utility . | . . . Weapon . | . . . Parts Attached 5 | . 4 1 Power 1 | . 1 . Engine 1 | . 1 . Core . | . . . Reactor . | . . . Propulsion 1 | . . 1 Treads 1 | . . 1 Leg . | . . . Wheel . | . . . Hover . | . . . Flight . | . . . Utility 2 | . 2 . Device 1 | . 1 . Storage 1 | . 1 . Processor . | . . . Hackware . | . . . Protection . | . . . Artifact . | . . . Weapon 1 | . 1 . Energy Gun . | . . . Energy Cannon . | . . . Ballistic Gun 1 | . 1 . Ballistic Cannon . | . . . Launcher . | . . . Special Weapon . | . . . Impact Weapon . | . . . Slashing Weapon . | . . . Piercing Weapon . | . . . Special Melee Weapon . | . . . Unidentified Prototypes . | . . . Parts Lost 4 | . 1 3 Power 1 | . 1 . Propulsion 1 | . . 1 Utility . | . . . Weapon 2 | . . 2 Highest Loss Streak 3 | . 1 3 Average Slot Usage (%) 62 | . 90 15 Engine 8 | . 12 1 Treads 1 | . . 3 Leg 18 | . 28 2 Device 4 | . 6 1 Storage 9 | . 14 1 Energy Gun 3 | . 5 . Ballistic Gun 15 | . 22 4 Naked Turns 103 | . . 103 Heaviest Build 16 | 11 16 16 Greatest Support 20 | 20 20 20 Greatest Overweight (x) . | . . . Average Overweight (x) . | . . . Largest Inventory Capacity 10 | . 10 10 Average Capacity 8 | . 9 5 Most Carried 6 | . 6 6 Average Carried 5 | . 5 4 Final Capacity 10 | 8 10 5 Final Carried 6 | 6 6 4 Class Distribution -------------------- 100% | Mutant Dominant Class ---------------- Mutant | -10/Materials Mutant | -10/Mines Resources | -11 -10 -10 ----------- Run | Scr Mat Min Matter Collected 303 | 169 124 10 Remotely . | . . . Salvage Created 263 | . 263 . Parts 17 | . 17 . Haulers Intercepted . | . . . Recyclers Shooed . | . . . Parts Field Recycled . | . . . Retrieved Matter . | . . . Parts Self-Destructed . | . . . Prevented . | . . . Kills | -11 -10 -10 ------- Run | Scr Mat Min Combat Hostiles Destroyed 6 | . 6 . Guns 6 | . 6 . Classes Destroyed 2 | . 2 . Operator 1 | . 1 . Grunt 6 | . 6 . Best Kill Streak 3 | . 3 . Combat Bots Only 2 | . 2 . Max Kills in Single Turn 1 | . 1 . Gunslinging . | . . . Exploded . | . . . Melee . | . . . Uniques/NPCs Destroyed . | . . . Combat | -11 -10 -10 -------- Run | Scr Mat Min Damage Taken 759 | . 393 366 Core 289 | . 72 217 Absorbed by Shields . | . . . Core Remaining (%) 100 | 100 . . Volleys Fired 31 | . 31 . Largest 2 | . 2 . Hottest 60 | . 60 . Shots Fired 62 | . 62 . Gun 62 | . 62 . Cannon . | . . . Launcher . | . . . Special . | . . . Kinetic 53 | . 53 . Thermal . | . . . Explosive . | . . . Electromagnetic 9 | . 9 . Robot Hit Streak 9 | . 9 . Robot Miss Streak 3 | . 3 . Penetration Max . | . . . Secondary Targets . | . . . Shots Hit Robots 38 | . 38 . Core Hits 20 | . 17 3 Critical Kills . | . . . Critical Parts Destroyed . | . . . Critical Strikes . | . . . Melee Attacks . | . . . Impact . | . . . Slashing . | . . . Piercing . | . . . Sneak Attacks . | . . . Combat Hostiles . | . . . Follow-up Attacks . | . . . Damage Inflicted 384 | . 355 29 Guns 355 | . 355 . Cannons . | . . . Explosions . | . . . Melee . | . . . Ramming 29 | . . 29 Kinetic 260 | . 260 . Thermal . | . . . Explosive . | . . . Electromagnetic 95 | . 95 . Impact . | . . . Slashing . | . . . Piercing . | . . . Highest Corruption 1 | . . 1 Average Corruption 1 | . . 1 Corruption Purged . | . . . Overload Shots . | . . . Overflow Damage . | . . . Projectiles . | . . . Explosions . | . . . Melee . | . . . Knockbacks . | . . . Impact . | . . . Kinetic . | . . . Secondary . | . . . Self-Inflicted Damage 13 | . . 13 Shots . | . . . Rammed 8 | . . 8 Targets Rammed 8 | . . 8 Kicked . | . . . Crushed . | . . . Highest Temperature 52 | . 52 15 Average Temperature 22 | . 23 15 Received Heat Transfer 362 | . 222 140 Siege Activations . | . . . Robots Corrupted . | . . . Combat Hostiles . | . . . Parts Fried . | . . . Impact Corruptions . | . . . Robots Melted . | . . . Combat Hostiles . | . . . Parts Melted . | . . . Heat Transferred . | . . . Parts Sabotaged . | . . . Parts Stolen . | . . . Parts Stripped . | . . . Power Chain Reactions . | . . . Missiles Intercepted . | . . . Alert | -11 -10 -10 ------- Run | Scr Mat Min Peak Influence 211 | . 211 178 Initial 82 | . . 82 Average 118 | . 117 121 Maximum Alert Level 1 | . 1 . Low Security (%) 85 | . 75 100 Level 1 14 | . 24 . Level 2 . | . . . Level 3 . | . . . Level 4 . | . . . Level 5 . | . . . High Security . | . . . Max Security . | . . . Squads Dispatched 2 | . 2 . Investigation 1 | . 1 . Extermination . | . . . Reinforcement 1 | . 1 . Assault . | . . . Garrison . | . . . Intercept . | . . . Construction Impeded . | . . . Haulers Reinforced . | . . . Active Scanning Responses . | . . . Cargo Convoy Interrupts . | . . . Stealth | -11 -10 -10 --------- Run | Scr Mat Min Distress Signals 1 | . 1 . Communications Jammed . | . . . Distress Signals . | . . . Times Spotted 43 | . 13 30 Peak Tracking Total 13 | . 5 13 Tactical Retreats 4 | . . 4 Traps | -11 -10 -10 ------- Run | Scr Mat Min Traps Triggered 1 | . 1 . Indirectly . | . . . Trap Hack Attempts . | . . . Triggered . | . . . Disarmed . | . . . Reprogrammed . | . . . Reused . | . . . Traps Extracted . | . . . Installed . | . . . Triggered . | . . . Machines | -11 -10 -10 ---------- Run | Scr Mat Min Machines Disabled . | . . . Max in Single Turn . | . . . Machines Sabotaged . | . . . Garrisons Compromised . | . . . Overloaded Fab Kills . | . . . Hacking | -11 -10 -10 --------- Run | Scr Mat Min Machines Accessed 4 | . 4 . Terminals 4 | . 4 . Fabricators . | . . . Repair Stations . | . . . Recycling Units . | . . . Scanalyzers . | . . . Garrison Access . | . . . Total Hacks 10 | . 10 . Successful 2 | . 2 . Failed 8 | . 8 . Catastrophic 2 | . 2 . Database Lockouts . | . . . Manual 11 | . 11 . Terminals 10 | . 10 . Fabricators . | . . . Repair Stations . | . . . Recycling Units . | . . . Scanalyzers . | . . . Garrison Access . | . . . Terminal Hacks 2 | . 2 . Robot Analysis 2 | . 2 . Fabricator Hacks . | . . . Repair Station Hacks . | . . . Recycling Unit Hacks . | . . . Scanalyzer . | . . . Garrison Access Hacks . | . . . Unauthorized Hacks . | . . . Terminals . | . . . Fabricators . | . . . Repair Stations . | . . . Recycling Units . | . . . Scanalyzers . | . . . Garrison Access . | . . . Data Cores Recovered . | . . . Used . | . . . Hacking Detections 4 | . 4 . Full Trace Events . | . . . Feedback Events . | . . . Feedback Blocked . | . . . Robot Schematics Acquired . | . . . Robots Built . | . . . Authchips . | . . . Time . | . . . Total Robot Build Rating . | . . . Part Schematics Acquired . | . . . Parts Built . | . . . Authchips . | . . . Time . | . . . Total Part Build Rating . | . . . Parts Repaired . | . . . Time . | . . . Parts Recycled . | . . . Recycled Matter . | . . . Retrieved Matter . | . . . Retrieved Components . | . . . Parts Scanalyzed . | . . . Part Schematics Acquired . | . . . Parts Damaged . | . . . Bothacking | -11 -10 -10 ------------ Run | Scr Mat Min Used RIF Installer . | . . . Robots Hacked . | . . . Non-combat . | . . . Combat . | . . . Robot Hacks Applied . | . . . Relay Couplers Released . | . . . Fabnet Peak Effective % . | . . . Robots Rewired . | . . . Allies Hacked . | . . . Hacks Repelled . | . . . Allies | -11 -10 -10 -------- Run | Scr Mat Min Total Allies 3 | . . 3 Largest Group 3 | . . 3 Highest-Rated Group 40 | . . 40 Highest-Rated Ally 16 | . . 16 Total Orders . | . . . Ally Attacks 12 | . . 12 Total Damage 141 | . . 141 Kills 5 | . . 5 Allies Corrupted . | . . . Allies Melted . | . . . Intel | -11 -10 -10 ------- Run | Scr Mat Min Robot Analysis Total 2 | . 2 . Derelict Logs Recovered 1 | . . 1 Drone Launches . | . . . Drone Recoveries . | . . . Exploration | -11 -10 -10 ------------- Run | Scr Mat Min Turns Passed 505 | . 310 195 Spaces Moved 507 | 1 173 333 Core 313 | . . 313 Treads . | . . . Legs 194 | 1 173 20 Wheels . | . . . Hover . | . . . Flight . | . . . Fastest Speed 50 | 120 120 50 Average Speed 76 | 120 120 54 Slowest Speed 120 | 120 120 120 Overloaded Moves . | . . . Propulsion Burnouts . | . . . Robots Hopped . | . . . Cave-ins Triggered . | . . . Exploration Rate (%) 33 | 2 44 54 Regions Visited 2 Branch Regions 1 Pre-discovered Areas 1 | . . 1 Known Exits Taken . | . . . Unknown Exits Taken 2 | 1 1 . Scrap Searched 1 | . . 1 Spaces Dug . | . . . Terrain Destroyed . | . . . Melee . | . . . Projectile . | . . . AOE . | . . . Terrain Rammed . | . . . Walls Destroyed . | . . . Machines Disabled . | . . . Actions | -11 -10 -10 --------- Run | Scr Mat Min Total 572 | . 223 349 Wait 16 | . 14 2 Move 505 | . 172 333 Hop . | . . . Pick Up 1 | . 1 . Fast Attach 3 | . 2 1 Attach 1 | . 1 . Detach . | . . . Swap 1 | . 1 . Drop 6 | . 1 5 Fire 31 | . 31 . Melee . | . . . Ram 8 | . . 8 Kick . | . . . Crush . | . . . Escape Stasis . | . . . Rewire . | . . . Trap . | . . . Miscellaneous . | . . . Route ------- -11/Scrapyard -10/Materials -10/Mines (discovered 2 exits: [*Mat x2]) History --------- Turn | Location | Event 1 | -11/Scrapyard | Discovered new exit (range 0) 1 | -11/Scrapyard | Entered Materials 304 | -10/Materials | Discovered new exit (range 5) 311 | -10/Materials | Entered Mines 312 | -10/Mines | Assembled infested the area 315 | -10/Mines | Build established: Mutant 316 | -10/Mines | Learned location of Storage (-8) 370 | -10/Mines | Discovered new exit (range 9) 380 | -10/Mines | Discovered new exit (range 6) 384 | -10/Mines | Lost 3 parts (1n2w) 394 | -10/Mines | Assisted by bots powering up and referring to "LRC-V3" 412 | -10/Mines | Core integrity fell below 50% 478 | -10/Mines | Core integrity fell below 20% 506 | -10/Mines | Destroyed by D-53 Grenadier with Mini Grenade Launcher Last Messages --------------- 00380_ K-01 Serf collects debris. 00394_ Trooper 1a: "Hello LRC-V3. What is your command?" 00394_ Mercenary 1a: "Hello LRC-V3. What is your command?" 00394_ Trooper 1b: "Hello LRC-V3. What is your command?" 00421_ K-01 Serf collects debris. 00432_ R-06 Scavenger collects Lgt. Ion Engine. 00434_ R-06 Scavenger collects Seismic Analyzer. 00437_ R-06 Scavenger destroyed. 00437_ R-06 Scavenger collects Com. Wheel. 00440_ R-06 Scavenger collects Terrain Scanner. 00453_ Slammed into K-01 Serf. 00453_ Destabilizing: System corrupted (+1). 00455_ Dropped Lgt. Treads. 00456_ Acquired Lgt. Treads. 00461_ Acquired 10 matter. 00463_ as-85571 destroyed. 00465_ as-55764 destroyed. 00476_ Slammed into as-57965. 00476_ Destabilizing: Core damaged (-10). 00477_ Slammed into as-57965. Map ----- +----------------------------------------------------+ | % % #?????# #????????# #????????????????????? | | ###### #?????# #????????# #????????????????????? | | ?????# #?????# #????????# #????????????????????? | | ?????# #?????# #????????# #????????????????????? | | ?????# #?????# #????????# #????????????????????? | | ?????# #?????# #????????# #????????????????????? | | ?????# #?????# #????????# #????????????????????? | | ?????# #?????# #????????# #????????????????????? | | ?????# #?????# ????????? ?????????????????????? | | ?????# #??##??###?????????#?????????????????????? | | ?????# ?? #???????????????????????????????????? | | ?????# ?? #???????????????????????????????????? | | ??????###?# ##??????????????????????????????????? | | ??????????# ????#??????????????????????????????? | | ??????##### ##?? #??????????????????????????????? | | ?????## #?? #??????????????????????????????? | | ?????? #?? #??????????????????????????????? | | ??????? #?? #??????????????????????????????? | | ???????# #??? #??????????????????????????????? | | ??????## #???# #??????????????????????????????? | | ####### #### ###????????????????????????????? | | %= %%%% ## ##?????????#?????????????????? | | ######| #????#### #?????????????????? | | ?????# #????# #?????????????????? | | ?????# #?####d####?????????????????? | | ?????## ##### ##?#a@d #????????????????????? | | ??????####???## #??#a####????????????????????? | | ?????????????## ##??# #???????????????????????? | | ??????????#### ###???# #???????????????????????? | | ###??????## ##?##### #### #??????????????????? | | #??????# ##??# #??????????????????? | | # #??????# ##???# ##########??????????????????? | | # #??????# ##???# #???????????????????????????? | | #%#??????## ##??# #???????????????????????????? | | # ########## #### #???????????????????????????? | | # % #?# ## #???????????????????????????? | | ######## #?# ## ###???????????????????????????? | | #??????# #?## ### #?????????????????????????????? | | #??????#%#??# #### #?????????????????????????????? | | #??????# ####* #?????????????????????????????? | | #??????# !%|######?????????????????????????????? | | #??????########??###########?????????????????????? | | ????############# ?????????????????????? | | ????# """ ""?????????????????????????? | | ????# ########### """ ""?????????????????????????? | | ##??# #?????????? """ ""?????????????????????????? | | #??# #??????????? ?????????????????????????? | | #??# #??????????? ?????????????????????????? | | #??# #???????????? ????????????????????????? | | #??# #???????????? ????????????????????????? | +----------------------------------------------------+ Best States ------------- Heat Dissipation 39 Energy Generation 10 Energy Capacity 125 Matter Stores 300 Matter Capacity 300 Sight Range 16 Terrain Scan Density 10 Evasion (%) 55 Item Schematics ----------------- None Robot Schematics ------------------ None Fabricated ------------ Nothing Alien Tech Used ----------------- None Achievements -------------- None Challenges ------------ None Game ------ Seed GaussSeismicBoregun Manual? 0 Play Time 00:11:31 Cumulative 153.1 hours Start 2022.01.03 @ 08:22:54 End 2022.01.03 @ 08:51:18 Sessions 1 Manual Loads 0 Difficulty Rogue Special Mode Winter2021/Sauler Game No. 234 Rogue 234 Adventurer 0 Explorer 0 Win Type - Total 9 Types 7/0/1/1/0/0/0/0/0 Lore% 48 Gallery% 73 Achievement% 62 Wizard Run 0 Options --------- ASCII 0 Keyboard 0 Movement Numpad Keybinds 0 Fullscreen 1 Font 18/Terminus Map View 76x50 Tactical HUD 1 Map Filters NONE Filters NONE Steam 1 RUN: 59ce46c9-d0c5-4a80-83f7-360f98dd40a7